bitfinex/quotes_SOLUSD_20250301
["timestamp","ask_amount","ask_price","bid_price","bid_amount"]
[1740788307307,0.063,147.45,147.44,2.0]
[1740788307697,0.063,147.45,147.44,3.42354426]
[1740788307882,0.063,147.45,147.44,2.0]
[1740788308082,0.063,147.45,147.44,221.0]
[1740788308392,0.063,147.45,147.42,81.0]
[1740788308576,0.063,147.45,147.41,6.36]
[1740788309280,5.4885,147.45,147.41,6.36]
[1740788310878,86.1885,147.45,147.41,6.36]
[1740788311071,80.7,147.44,147.41,6.36]
[1740788311274,99.692,147.43,147.33,339.721]
[1740788311490,99.692,147.43,147.36,6.36]
[1740788311696,80.7,147.42,147.35,6.36]
[1740788312070,80.7,147.42,147.34,6.36]
[1740788312576,20.0,147.38,147.3,6.39]
[1740788313492,18.9997,147.37,147.3,6.39]
[1740788313686,99.6997,147.37,147.3,0.03]
[1740788313883,99.6997,147.37,147.31,0.03]
[1740788315312,86.1285,147.37,147.31,0.03]
[1740788316696,87.0199,147.36,147.31,0.03]
[1740788316881,80.7,147.35,147.31,0.03]
[1740788318179,5.4296,147.34,147.31,0.03]
[1740788318872,86.1296,147.34,147.31,0.03]
[1740788319289,1.5159,147.33,147.31,0.03]
[1740788320398,5.4303,147.32,147.31,0.03]
[1740788320595,80.7,147.31,147.28,0.03]
[1740788320801,80.7,147.31,147.27,0.03]
[1740788321010,1.5159,147.25,147.2,1.0001276]
[1740788321307,82.2159,147.25,147.2,1.0001276]
[1740788322213,99.34964886,147.24,147.2,1.0001276]
[1740788322496,5.4336,147.23,147.2,1.0001276]
[1740788322704,5.5458,147.15,147.1,10.46426231]
[1740788322919,18.64964886,147.14,147.1,10.46426231]
[1740788323082,20.64964886,147.14,147.1,10.46426231]
[1740788323281,18.64964886,147.14,147.1,10.46426231]
[1740788324204,1.5458,147.15,147.1,10.46426231]
[1740788324403,1.5458,147.15,147.08,6.8]
[1740788324602,24.08654886,147.14,147.08,6.8]
[1740788324904,5.4369,147.14,147.08,6.8]
[1740788325097,18.64964886,147.13,147.08,6.8]
[1740788326289,5.4369,147.14,147.08,6.8]
[1740788326782,19.0293,147.14,147.03,6.86]
[1740788327311,18.64964886,147.13,147.03,6.86]
[1740788327807,18.64964886,147.11,147.03,6.86]
[1740788328184,18.64964886,147.11,147.01,81.0]
[1740788328389,18.64964886,147.09,146.96,87.88]
[1740788328585,18.64964886,147.09,146.96,225.88]
[1740788328901,5.4392,147.08,146.96,229.88]
[1740788329281,5.4392,147.08,146.96,227.88]
[1740788330306,5.4392,147.08,146.96,180.4777272]
[1740788330496,18.64964886,147.07,146.96,114.5977272]
[1740788330800,18.64964886,147.07,146.97,6.94]
[1740788331808,18.64964886,147.07,146.98,6.94]
[1740788331992,5.4392,147.08,146.98,87.94]
[1740788332397,5.4388,147.09,146.98,87.94]
[1740788332706,92.1874,147.1,146.98,95.3828]
[1740788333096,92.1874,147.1,146.98,233.3828]
[1740788333286,92.1874,147.1,146.98,235.3828]
[1740788333486,80.7,147.1,147.01,3.39414117]
[1740788333707,80.7,147.13,147.01,225.82191564]
[1740788333898,80.7,147.13,147.02,2.0]
[1740788334295,80.7,147.13,147.03,5.441]
[1740788334501,80.7,147.13,147.04,6.92]
[1740788334695,88.2947,147.15,147.04,225.92]
[1740788334900,93.7314,147.15,147.04,225.92]
[1740788335414,93.7314,147.15,147.05,3.44940812]
[1740788335900,88.2947,147.15,147.05,84.44940812]
[1740788336100,62.31612425,147.17,147.09,20.0]
[1740788336300,62.31612425,147.17,147.12,20.0]
[1740788336514,5.4336,147.23,147.11,84.33625794]
[1740788336813,5.4336,147.23,147.11,89.77425794]
[1740788336814,80.7,147.22,147.11,89.77425794]
[1740788337415,18.64964886,147.21,147.11,84.33625794]
[1740788338521,24.08414886,147.21,147.11,84.33625794]
[1740788339400,80.7,147.2,147.11,84.33625794]
[1740788339598,86.1348,147.2,147.11,84.33625794]
[1740788339799,80.7,147.19,147.1,6.92]
[1740788340823,80.7,147.19,147.1,10.3856707]
[1740788341719,80.7,147.19,147.1,3.4656707]
[1740788341922,18.64964886,147.14,147.08,0.03]
[1740788342224,80.7,147.13,147.08,0.03]
[1740788343405,80.7,147.12,147.08,0.03]
[1740788344115,5.4381,147.11,147.03,87.94]
[1740788345429,5.4381,147.11,147.03,87.94]
[1740788345605,5.4381,147.11,147.03,81.0]
[1740788345807,5.4381,147.11,147.04,6.9]
[1740788346012,86.1378,147.12,147.04,6.9]
[1740788346723,86.1378,147.12,147.04,10.27264462]
[1740788348199,86.1378,147.12,147.04,6.9]
[1740788348405,99.7321,147.12,147.04,6.9]
[1740788348807,80.7,147.11,147.04,6.9]
[1740788350022,80.7,147.11,147.03,87.86]
[1740788350328,86.1384,147.1,147.03,54.68911458]
[1740788350628,99.7345,147.1,147.03,54.68911458]
[1740788352821,13.5942,147.13,147.03,192.68911458]
[1740788353009,5.4369,147.14,147.06,20.0]
[1740788353333,102.4087,147.18,147.07,7.64292997]
[1740788353515,5.4358,147.17,147.07,193.47204455]
[1740788353720,5.4358,147.17,147.07,192.04471458]
[1740788353916,99.34964886,147.16,147.07,6.2156]
[1740788354228,99.34964886,147.16,147.05,47.82911458]
[1740788354601,80.7,147.15,147.05,47.82911458]
[1740788354805,80.7,147.16,147.08,20.0]
[1740788355000,82.3111,147.18,147.09,6.86]
[1740788355205,0.063,147.19,147.12,20.0]
[1740788355508,0.063,147.19,147.12,67.82911458]
[1740788355711,0.063,147.19,147.12,47.82911458]
[1740788355912,5.4982,147.19,147.12,47.82911458]
[1740788356112,0.063,147.19,147.12,47.82911458]
[1740788356306,0.063,147.19,147.12,53.26671458]
[1740788356716,0.063,147.19,147.12,191.26671458]
[1740788356918,0.063,147.19,147.13,7.64210483]
[1740788357327,0.063,147.19,147.16,20.0]
[1740788357529,0.063,147.19,147.17,6.86]
[1740788357827,0.063,147.19,147.17,8.2860657]
[1740788358014,0.063,147.19,147.18,5.4355]
[1740788358633,0.063,147.19,147.18,191.26461458]
[1740788359232,0.063,147.19,147.18,187.82911458]
[1740788359435,0.063,147.21,147.2,20.0]
[1740788359629,87.0987,147.34,147.22,2.0]
[1740788359816,0.063,147.34,147.26,20.0]
[1740788360014,0.063,147.34,147.27,5.4321]
[1740788360217,0.063,147.34,147.26,211.26161458]
[1740788361025,0.063,147.34,147.27,3.42926904]
[1740788362740,0.063,147.34,147.26,205.82911458]
[1740788363135,0.063,147.34,147.26,67.82911458]
[1740788363512,0.063,147.34,147.26,71.28716549]
[1740788364319,0.063,147.34,147.26,51.28716549]
[1740788364534,80.763,147.34,147.26,6.84]
[1740788364726,99.34964886,147.33,147.26,6.84]
[1740788364926,80.7,147.32,147.26,6.84]
[1740788366347,5.4307,147.31,147.26,6.84]
[1740788367244,19.0075,147.31,147.26,6.84]
[1740788368745,18.64964886,147.3,147.26,6.84]
[1740788369335,80.7,147.29,147.26,6.84]
[1740788370326,5.4318,147.28,147.26,6.84]
[1740788370530,86.1318,147.28,147.26,6.84]
[1740788371624,86.1318,147.28,147.19,162.34911458]
[1740788371949,99.7113,147.28,147.2,6.76]
[1740788372126,80.7,147.27,147.21,6.76]
[1740788372326,19.0139,147.26,147.21,6.76]
[1740788373846,82.2842,147.25,147.16,3.44551562]
[1740788374034,99.7165,147.24,147.17,6.76]
[1740788374434,19.0165,147.24,147.17,6.76]
[1740788374832,19.0165,147.24,147.17,54.58911458]
[1740788375543,13.5832,147.24,147.17,54.58911458]
[1740788375847,5.4329,147.25,147.17,54.58911458]
[1740788377929,5.4329,147.25,147.17,56.01540036]
[1740788378129,5.4329,147.25,147.17,199.45120036]
[1740788378330,5.4329,147.25,147.17,198.02491458]
[1740788378725,0.063,147.28,147.21,2.0]
[1740788379040,0.063,147.28,147.27,4.0]
[1740788379233,0.063,147.34,147.32,20.0]
[1740788379555,0.063,147.34,147.33,6.76]
[1740788383046,0.063,147.34,147.33,54.58911458]
[1740788383355,0.063,147.35,147.33,54.58911458]
[1740788384554,0.063,147.35,147.33,60.01891458]
[1740788384859,0.063,147.35,147.34,3.42904829]
[1740788386426,80.7,147.42,147.36,20.0]
[1740788386629,11.5205,147.43,147.36,67.82911458]
[1740788388548,5.4893,147.43,147.36,67.82911458]
[1740788389356,5.4893,147.43,147.36,47.82911458]
[1740788389542,99.34964886,147.42,147.36,6.7]
[1740788389745,18.64964886,147.4,147.34,6.7]
[1740788389933,80.7,147.39,147.33,6.7]
[1740788390135,80.7,147.38,147.33,6.7]
[1740788391540,5.4285,147.37,147.33,6.7]
[1740788392053,18.9997,147.37,147.33,6.7]
[1740788393540,1.5802,147.36,147.29,47.82911458]
[1740788393741,18.64964886,147.34,147.27,3.33341831]
[1740788393954,80.7,147.33,147.28,6.68]
[1740788394263,80.7,147.32,147.28,6.68]
[1740788395266,80.7,147.31,147.22,47.82911458]
[1740788395444,80.7,147.3,147.24,6.66]
[1740788395760,19.01,147.29,147.24,6.66]
[1740788396260,19.01,147.29,147.22,47.82911458]
[1740788396440,19.01,147.29,147.22,54.48911458]
[1740788397067,46.1673,147.29,147.22,54.48911458]
[1740788397238,100.91394886,147.28,147.22,6.66]
[1740788397558,80.7,147.27,147.22,6.66]
[1740788397765,80.7,147.26,147.22,6.66]
[1740788397951,19.0152,147.25,147.22,6.66]
[1740788398260,99.7152,147.25,147.16,6.69]
[1740788398461,80.7,147.24,147.16,54.51911458]
[1740788398660,80.7,147.24,147.16,63.30735639]
[1740788398856,5.4321,147.27,147.19,20.0]
[1740788399064,5.4321,147.27,147.19,185.82911458]
[1740788399565,6.9962,147.28,147.22,0.03]
[1740788399766,6.9962,147.28,147.23,6.66]
[1740788401137,5.4315,147.29,147.23,6.66]
[1740788402560,6.9947,147.32,147.23,59.92271458]
[1740788402856,86.7395,147.34,147.26,20.0]
[1740788403168,5.43,147.33,147.24,185.82911458]
[1740788403957,5.43,147.33,147.25,5.4329]
[1740788404270,19.0049,147.33,147.24,185.82911458]
[1740788404663,80.7,147.32,147.24,47.82911458]
[1740788404842,80.7,147.32,147.24,53.26231458]
[1740788406262,19.0075,147.31,147.24,47.82911458]
[1740788410350,80.7,147.3,147.23,6.66]
[1740788410768,80.7,147.3,147.23,54.48911458]
[1740788411844,5.4314,147.29,147.23,54.48911458]
[1740788413862,5.4314,147.29,147.23,53.98911458]
[1740788417155,20.5133,147.29,147.23,54.36911458]
[1740788420670,80.7,147.28,147.23,6.54]
[1740788420875,80.7,147.27,147.23,6.54]
[1740788422580,25.2653,147.26,147.22,0.03]
[1740788424472,5.4325,147.26,147.22,0.03]
[1740788424770,1.5033,147.29,147.22,47.85911458]
[1740788424974,11.7452,147.31,147.22,47.85911458]
[1740788425158,11.7452,147.31,147.22,185.85911458]
[1740788426059,11.7452,147.31,147.23,5.4336]
[1740788426375,11.7452,147.31,147.25,3.35999951]
[1740788430656,11.7452,147.31,147.25,8.79289951]
[1740788432976,11.7452,147.31,147.24,54.32911458]
[1740788433364,11.7452,147.31,147.24,6.5]
[1740788433365,80.7,147.3,147.24,6.5]
[1740788434057,5.4314,147.29,147.24,6.44]
[1740788434475,5.4314,147.29,147.23,3.34352276]
[1740788434673,5.4314,147.29,147.24,6.44]
[1740788434873,19.01,147.29,147.24,6.44]
[1740788435965,1.6172,147.28,147.24,6.44]
[1740788436187,82.3172,147.28,147.24,6.44]
[1740788436491,82.3172,147.28,147.22,0.03]
[1740788436791,80.7,147.27,147.22,0.03]
[1740788437985,19.0139,147.26,147.22,0.03]
[1740788439073,105.74464886,147.25,147.22,0.03]
[1740788439388,80.7,147.24,147.22,0.03]
[1740788439590,80.7,147.24,147.22,0.0001]
[1740788439788,1.6172,147.23,147.22,0.0001]
[1740788440180,7.0508,147.23,147.22,0.0001]
[1740788440376,25.70044886,147.23,147.22,0.0001]
[1740788440885,39.28454886,147.23,147.16,0.03]
[1740788441085,80.7,147.22,147.16,0.03]
[1740788442169,5.4344,147.21,147.16,0.03]
[1740788443489,5.4341,147.22,147.16,0.03]
[1740788445886,1.6172,147.23,147.16,0.03]
[1740788446273,7.0508,147.23,147.16,0.03]
[1740788449292,7.0508,147.23,147.16,47.85911458]
[1740788450092,20.6349,147.23,147.16,47.85911458]
[1740788451983,47.8032,147.23,147.16,47.85911458]
[1740788452290,80.7,147.22,147.16,0.03]
[1740788452673,80.7,147.21,147.16,0.03]
[1740788454399,19.0216,147.2,147.16,0.03]
[1740788454601,80.7,147.19,147.16,0.03]
[1740788455884,5.4355,147.18,147.16,0.03]
[1740788457793,80.7,147.17,147.16,0.03]
[1740788460085,86.1358,147.17,147.16,0.03]
[1740788461380,5.4351,147.19,147.16,0.03]
[1740788461582,80.7,147.25,147.17,6.34]
[1740788461781,1.5492,147.27,147.17,192.16911458]
[1740788461978,0.063,147.29,147.17,192.16911458]
[1740788461979,0.063,147.29,147.21,6.1276]
[1740788462180,0.063,147.29,147.22,7.76564723]
[1740788462388,10.44066547,147.29,147.22,7.76564723]
[1740788462590,10.44066547,147.29,147.22,195.59476181]
[1740788462773,10.44066547,147.29,147.25,3.43093538]
[1740788462978,10.44066547,147.29,147.25,51.26004996]
[1740788463490,10.44066547,147.29,147.26,5.4325]
[1740788463798,10.44066547,147.29,147.27,6.36]
[1740788463993,20.83504141,147.31,147.27,193.61443974]
[1740788464194,20.83504141,147.31,147.28,18.64964886]
[1740788464396,0.063,147.31,147.28,206.47876344]
[1740788464579,0.063,147.31,147.29,1.42495083]
[1740788464974,0.063,147.31,147.3,20.0]
[1740788465180,0.063,147.31,147.3,91.90976344]
[1740788465383,0.063,147.31,147.3,231.33458111]
[1740788465588,0.063,147.31,147.3,229.90976344]
[1740788465782,0.063,147.31,147.3,236.03736344]
[1740788466193,0.063,147.31,147.3,239.50012362]
[1740788467503,0.063,147.31,147.3,241.50012362]
[1740788467807,0.063,147.35,147.34,20.0]
[1740788468102,0.063,147.35,147.34,213.59358931]
[1740788468405,0.063,147.35,147.34,212.16911458]
[1740788468594,0.063,147.35,147.34,234.81876344]
[1740788469488,0.063,147.35,147.34,240.24836344]
[1740788470904,0.063,147.35,147.34,243.65153355]
[1740788472508,0.063,147.38,147.37,22.0]
[1740788472691,0.063,147.38,147.37,209.25309088]
[1740788472891,0.063,147.38,147.37,207.82911458]
[1740788473119,0.063,147.38,147.37,226.47876344]
[1740788473421,0.063,147.38,147.37,234.66036344]
[1740788473716,0.063,147.43,147.41,22.0]
[1740788473900,0.063,147.43,147.42,7.7636697]
[1740788474224,0.063,147.43,147.42,31.83991856]
[1740788474712,0.063,147.43,147.42,217.66903314]
[1740788474889,0.063,147.43,147.42,220.24536344]
[1740788475203,0.063,147.44,147.43,22.64964886]
[1740788475403,0.063,147.44,147.43,208.47876344]
[1740788476305,0.063,147.44,147.43,214.01226582]
[1740788476612,0.063,147.44,147.43,219.34422307]
[1740788476796,0.063,147.44,147.43,213.90506344]
[1740788477600,0.063,147.45,147.44,22.64964886]
[1740788477803,0.063,147.45,147.44,209.90189193]
[1740788478002,0.063,147.45,147.44,228.93876344]
[1740788479316,0.063,147.45,147.44,211.90466344]
[1740788479606,0.063,147.45,147.44,213.90466344]
[1740788479809,0.063,147.46,147.45,49.29124886]
[1740788480001,0.063,147.46,147.45,50.71419924]
[1740788480316,0.063,147.5,147.46,44.01284886]
[1740788480494,0.063,147.55,147.52,20.64964886]
[1740788480694,0.063,147.55,147.52,216.22137253]
[1740788481016,0.063,147.55,147.52,214.79876344]
[1740788481310,0.063,147.55,147.52,212.79876344]
[1740788481509,0.063,147.55,147.52,210.79876344]
[1740788482009,0.063,147.55,147.52,216.22166344]
[1740788483023,0.063,147.55,147.52,219.62351286]
[1740788483233,0.063,147.55,147.52,214.20061286]
[1740788483710,0.063,147.55,147.52,207.88061286]
[1740788483915,0.063,147.55,147.52,195.570964]
[1740788484292,0.063,147.55,147.52,47.82911458]
[1740788484499,0.063,147.55,147.52,54.16911458]
[1740788485219,6.4094,147.55,147.52,54.16911458]
[1740788485405,5.4852,147.54,147.52,54.16911458]
[1740788485607,5.4852,147.54,147.52,6.34]
[1740788485799,5.4852,147.54,147.48,47.82911458]
[1740788485999,5.4852,147.54,147.49,6.34]
[1740788487823,1.5517,147.52,147.48,6.34]
[1740788488400,1.5517,147.52,147.47,3.4509448]
[1740788488615,1.5517,147.52,147.45,6.34]
[1740788488821,80.7,147.51,147.45,6.34]
[1740788489410,5.4237,147.5,147.45,6.34]
[1740788489996,1.5517,147.52,147.48,20.0]
[1740788490217,0.063,147.53,147.49,18.64964886]
[1740788490435,0.063,147.53,147.5,6.34]
[1740788490801,5.4857,147.53,147.5,6.34]
[1740788491500,0.063,147.53,147.5,6.34]
[1740788492320,0.063,147.53,147.45,47.82911458]
[1740788492321,1.5517,147.51,147.45,47.82911458]
[1740788492518,1.5517,147.51,147.45,6.34]
[1740788494022,1.5517,147.51,147.45,54.16911458]
[1740788494417,6.975,147.51,147.45,54.16911458]
[1740788494613,20.5334,147.51,147.45,54.16911458]
[1740788494945,6.4183,147.49,147.44,6.34]
[1740788496122,5.4244,147.48,147.44,6.34]
[1740788497827,6.4183,147.49,147.44,6.34]
[1740788498126,6.4183,147.49,147.44,11.7659]
[1740788498306,6.9751,147.51,147.44,6.34]
[1740788499029,20.5335,147.51,147.44,6.34]
[1740788499231,18.64964886,147.49,147.44,6.34]
[1740788500220,18.9855,147.48,147.44,6.34]
[1740788500729,6.4183,147.47,147.43,0.063]
[1740788500916,1.5517,147.46,147.43,0.063]
[1740788501122,80.7,147.45,147.43,0.063]
[1740788502230,5.4259,147.44,147.43,0.063]
[1740788502613,80.7,147.43,147.37,6.34]
[1740788504130,18.9932,147.42,147.37,6.34]
[1740788504436,18.9932,147.42,147.36,6.34]
[1740788505517,18.9932,147.42,147.35,0.063]
[1740788505518,5.4266,147.42,147.35,0.063]
[1740788505729,5.4266,147.42,147.36,6.34]
[1740788506540,86.1264,147.43,147.36,6.34]
[1740788507637,86.1264,147.43,147.36,11.7686]
[1740788508640,5.4255,147.45,147.37,18.64964886]
[1740788508824,1.5517,147.46,147.37,18.64964886]
[1740788509219,1.5517,147.46,147.4,20.0]
[1740788509423,1.5517,147.46,147.42,5.4266]
[1740788510233,1.5517,147.46,147.41,11.7469]
[1740788510542,1.5517,147.46,147.41,6.32]
[1740788510932,1.5517,147.46,147.41,11.7469]
[1740788511136,1.5757,147.5,147.42,18.64964886]
[1740788511339,1.5757,147.5,147.42,204.47876344]
[1740788511531,1.5757,147.5,147.43,5.4263]
[1740788512543,1.5757,147.5,147.44,18.64964886]
[1740788512734,0.063,147.53,147.46,18.64964886]
[1740788513038,0.063,147.53,147.47,6.34]
[1740788513624,0.063,147.53,147.48,5.4244]
[1740788515040,0.063,147.53,147.47,6.34]
[1740788515227,0.063,147.53,147.47,11.7647]
[1740788515743,0.063,147.53,147.47,6.34]
[1740788517752,5.4229,147.52,147.47,6.34]
[1740788522856,5.4229,147.52,147.47,6.34]
[1740788525538,18.9803,147.52,147.47,6.34]
[1740788525730,18.9803,147.52,147.47,5.84]
[1740788526150,5.4229,147.52,147.47,5.84]
[1740788527362,99.6803,147.52,147.47,5.84]
[1740788527535,18.64964886,147.51,147.39,53.86691458]
[1740788527744,7.8765,147.47,147.4,6.3]
[1740788527936,7.8765,147.47,147.4,54.12911458]
[1740788528261,7.8765,147.47,147.4,6.3]
[1740788528436,18.9882,147.46,147.4,6.3]
[1740788529140,5.4252,147.46,147.4,6.3]
[1740788530134,5.4252,147.46,147.4,6.363]
[1740788532839,18.9882,147.46,147.4,6.363]
[1740788533540,99.6882,147.46,147.4,0.063]
[1740788533742,99.34964886,147.45,147.4,0.063]
[1740788534260,80.7,147.44,147.4,0.063]
[1740788534558,80.7,147.43,147.4,0.063]
[1740788534853,1.6534,147.42,147.4,0.063]
[1740788535746,5.427,147.41,147.4,0.063]
[1740788538955,1.6534,147.42,147.4,0.063]
[1740788539146,7.0801,147.42,147.4,0.063]
[1740788539544,99.34964886,147.41,147.4,0.063]
[1740788539747,104.77664886,147.41,147.4,0.063]
[1740788541249,86.127,147.41,147.4,0.063]
[1740788546481,80.7,147.41,147.4,0.063]
[1740788548481,86.127,147.41,147.4,0.063]
[1740788548862,80.7,147.41,147.4,0.063]
[1740788549384,86.127,147.41,147.4,0.063]
[1740788551059,104.77664886,147.41,147.4,0.063]
[1740788555684,20.0,147.38,147.35,0.063]
[1740788557775,5.4285,147.37,147.35,0.063]
[1740788562382,86.1285,147.37,147.35,0.063]
[1740788569393,5.4277,147.39,147.35,0.063]
[1740788570209,18.9971,147.39,147.35,0.063]
[1740788571403,5.4277,147.39,147.35,0.063]
[1740788573220,4.9277,147.39,147.35,0.063]
[1740788574507,18.4971,147.39,147.35,0.063]
[1740788574913,4.9277,147.39,147.35,0.063]
[1740788575300,80.7,147.4,147.35,0.063]
[1740788575495,86.1274,147.4,147.36,6.2]
[1740788575817,85.6274,147.4,147.36,6.2]
[1740788576713,85.6574,147.4,147.36,6.2]
[1740788578728,85.1574,147.4,147.36,6.2]
[1740788581241,5.4574,147.4,147.36,6.2]
[1740788581432,0.03,147.4,147.36,11.6288]
[1740788581734,0.03,147.4,147.36,59.45791458]
[1740788582420,0.03,147.4,147.38,5.4281]
[1740788582618,0.03,147.4,147.38,53.25721458]
[1740788584231,0.03,147.4,147.39,3.42890022]
[1740788584435,0.03,147.4,147.39,8.85660022]
[1740788585333,0.03,147.4,147.39,75.33536366]
[1740788588335,0.03,147.4,147.39,76.87506366]
[1740788588523,0.03,147.4,147.39,83.13266366]
[1740788588742,0.03,147.4,147.39,228.56441579]
[1740788589031,0.03,147.4,147.39,221.13266366]
[1740788590020,0.03,147.4,147.39,202.4830148]
[1740788590233,0.03,147.4,147.39,221.13266366]
[1740788591436,0.03,147.4,147.39,64.4830148]
[1740788591742,0.03,147.4,147.39,62.9433148]
[1740788592624,0.03,147.4,147.39,81.59296366]
[1740788592823,0.03,147.4,147.39,221.59296366]
[1740788593827,0.03,147.4,147.39,219.59296366]
[1740788601849,0.03,147.4,147.39,213.33536366]
[1740788602352,0.03,147.4,147.39,51.2580148]
[1740788602552,0.03,147.4,147.39,57.4580148]
[1740788603436,0.03,147.4,147.39,62.8857148]
[1740788603828,0.03,147.4,147.39,57.4580148]
[1740788604045,0.03,147.4,147.39,62.8857148]
[1740788605727,0.03,147.4,147.39,57.4580148]
[1740788607550,0.03,147.4,147.39,6.2]
[1740788608226,0.03,147.4,147.39,197.45681458]
[1740788608547,0.03,147.47,147.43,18.64964886]
[1740788608848,0.03,147.47,147.44,6.2]
[1740788609032,0.03,147.47,147.46,20.0]
[1740788609234,0.03,147.47,147.46,67.82911458]
[1740788609945,0.03,147.47,147.46,73.25431458]
[1740788610150,0.03,147.47,147.46,91.90396344]
[1740788610654,0.03,147.47,147.46,86.47876344]
[1740788610841,0.03,147.47,147.46,91.90396344]
[1740788611159,0.03,147.47,147.46,89.87759318]
[1740788611337,0.03,147.47,147.46,71.22794432]
[1740788612351,0.03,147.47,147.46,51.22794432]
[1740788613233,0.03,147.47,147.46,75.30279318]
[1740788614353,0.03,147.47,147.46,213.30279318]
[1740788616863,0.03,147.52,147.5,20.0]
[1740788617045,0.03,147.52,147.51,24.84964886]
[1740788617445,0.03,147.52,147.51,26.27249694]
[1740788618263,0.03,147.52,147.51,212.10161152]
[1740788618569,0.03,147.52,147.51,210.67876344]
[1740788618756,0.03,147.52,147.51,216.10206344]
[1740788619969,0.03,147.52,147.51,75.99938968]
[1740788620162,0.03,147.52,147.51,213.99938968]
[1740788620753,0.03,147.52,147.51,219.42268968]
[1740788621274,0.03,147.52,147.51,213.99938968]
[1740788628689,0.03,147.52,147.51,241.88268968]
[1740788629455,0.03,147.52,147.51,250.36848968]
[1740788630177,0.0001,147.52,147.51,250.36848968]
[1740788632185,0.0001,147.52,147.51,246.36848968]
[1740788632390,0.0001,147.52,147.51,250.36848968]
[1740788633274,0.0001,147.52,147.51,248.36848968]
[1740788633583,0.0001,147.52,147.51,250.36848968]
[1740788634992,0.063,147.56,147.51,250.36848968]
[1740788634993,0.03,147.61,147.56,24.46]
[1740788635164,0.03,147.61,147.58,38.64964886]
[1740788636377,0.03,147.61,147.58,59.10964886]
[1740788637093,0.03,147.61,147.58,61.10964886]
[1740788637469,0.03,147.61,147.58,66.53034886]
[1740788637991,0.03,147.61,147.58,69.89876839]
[1740788639474,0.03,147.61,147.58,255.72788297]
[1740788640000,0.0001,147.6,147.59,90.93876344]
[1740788640194,0.03,147.67,147.63,18.64964886]
[1740788640381,0.03,147.67,147.64,6.18]
[1740788640776,0.03,147.67,147.64,192.00911458]
[1740788642002,0.03,147.67,147.64,197.42761458]
[1740788642574,0.03,147.67,147.64,192.00911458]
[1740788643296,0.03,147.67,147.66,3.36127423]
[1740788643494,0.03,147.67,147.66,51.19038881]
[1740788643693,0.03,147.67,147.64,6.18]
[1740788644278,0.03,147.67,147.63,47.82911458]
[1740788644488,0.03,147.67,147.65,6.18]
[1740788645201,0.063,147.71,147.67,4.0]
[1740788645399,8.1249,147.77,147.7,38.64964886]
[1740788645611,0.063,147.8,147.71,36.34681301]
[1740788645891,0.063,147.8,147.75,18.64964886]
[1740788646097,0.063,147.8,147.76,6.18]
[1740788646282,8.1249,147.79,147.76,6.18]
[1740788647273,0.063,147.8,147.76,54.00911458]
[1740788647700,0.063,147.8,147.76,57.44331846]
[1740788648006,20.0,147.79,147.76,6.18]
[1740788648185,20.0,147.78,147.71,185.82911458]
[1740788648378,1.5802,147.76,147.72,6.24]